bitfinex-derivatives/quotes_ETHF0:USTF0_20250505
["timestamp","ask_amount","ask_price","bid_price","bid_amount"]
[1746453099735,6.42887749,1800.2,1800.1,5.08899]
[1746453099938,1.9276,1800.2,1800.1,5.08899]
[1746453100134,1.9373,1800.4,1800.3,1.11087]
[1746453100540,3.0481,1800.4,1800.3,1.11087]
[1746453100738,1.9373,1800.4,1800.3,1.11087]
[1746453101243,4.82874,1800.5,1800.4,1.1108]
[1746453101442,10.15638749,1800.5,1800.4,3.978]
[1746453102141,10.15638749,1800.5,1800.4,5.0888]
[1746453102341,10.15638749,1800.5,1800.4,3.978]
[1746453103630,10.15638749,1800.5,1800.4,5.0888]
[1746453103836,9.04564749,1800.5,1800.4,5.0888]
[1746453104439,10.15638749,1800.5,1800.4,5.0888]
[1746453105042,1.11073,1800.6,1800.5,1.11072]
[1746453105246,4.50107749,1800.6,1800.5,1.11072]
[1746453106042,1.8962,1800.7,1800.4,3.978]
[1746453106043,1.8962,1800.7,1800.6,1.11068]
[1746453106243,3.00682,1800.7,1800.6,1.11068]
[1746453107142,1.11071,1800.6,1800.5,1.1107]
[1746453107345,4.50105749,1800.6,1800.5,1.1107]
[1746453107742,4.50108749,1800.6,1800.5,5.08774]
[1746453108242,6.33538749,1800.6,1800.5,5.08774]
[1746453108543,6.33538749,1800.6,1800.5,3.977]
[1746453108740,1.11087,1800.3,1800.2,3.2078]
[1746453108941,4.50121749,1800.3,1800.2,7.1838]
[1746453109142,4.50121749,1800.3,1800.2,8.29473]
[1746453109338,1.11104,1800.1,1800.0,3.976]
[1746453109544,4.50138749,1800.1,1800.0,5.08705]
[1746453110040,6.49068749,1800.1,1800.0,3.976]
[1746453111933,1.8751,1800.2,1800.1,1.11099]
[1746453112138,3.0085,1800.3,1800.2,1.11093]
[1746453112335,1.8976,1800.3,1800.2,1.11093]
[1746453112543,1.11099,1800.1,1800.0,7.1838]
[1746453112742,4.50133749,1800.1,1800.0,3.977]
[1746453112942,7.70913749,1800.1,1800.0,3.977]
[1746453113336,1.11124,1799.7,1799.6,7.1848]
[1746453113542,7.70938749,1799.7,1799.6,3.977]
[1746453113741,7.70938749,1799.7,1799.3,1.11146]
[1746453113742,1.11142,1799.4,1799.3,1.11146]
[1746453113943,3.39034749,1799.4,1799.3,5.08846]
[1746453114144,1.11136,1799.5,1799.4,1.11142]
[1746453114343,6.39930749,1799.5,1799.4,1.11142]
[1746453114650,5.28794749,1799.5,1799.3,3.977]
[1746453114845,4.50176749,1799.4,1799.3,5.08845]
[1746453115045,1.9738,1799.4,1799.3,5.08845]
[1746453116449,9.68336749,1799.4,1799.3,3.977]
[1746453116648,8.49426749,1799.4,1799.3,3.977]
[1746453116845,8.49426749,1799.4,1799.3,5.08848]
[1746453116846,7.38284749,1799.4,1799.3,5.08848]
[1746453117043,1.9297,1799.6,1799.5,1.11136]
[1746453117445,3.041,1799.6,1799.5,1.11136]
[1746453117649,1.9297,1799.6,1799.5,1.11136]
[1746453117842,1.11136,1799.5,1799.4,1.11136]
[1746453118044,6.36550749,1799.5,1799.3,7.1848]
[1746453118248,6.36550749,1799.5,1799.4,1.11142]
[1746453118547,6.36550749,1799.5,1799.3,5.08844]
[1746453118749,1.11148,1799.3,1799.2,1.1115]
[1746453118950,4.50181749,1799.4,1799.3,1.11148]
[1746453119249,1.9444,1799.5,1799.3,1.11148]
[1746453119451,3.39034749,1799.4,1799.3,1.11148]
[1746453120146,3.05576,1799.5,1799.4,1.11142]
[1746453120346,1.9444,1799.5,1799.4,1.11142]
[1746453120645,5.33474749,1799.5,1799.4,1.11142]
[1746453121547,1.9297,1799.6,1799.5,1.11136]
[1746453121746,5.32004749,1799.6,1799.5,5.08936]
[1746453122152,6.43134749,1799.6,1799.5,5.08936]
[1746453122351,6.43134749,1799.6,1799.5,3.978]
[1746453122549,16.30613749,1799.6,1799.0,3.2078]
[1746453122749,3.39034749,1799.1,1799.0,10.32427]
[1746453122948,1.9479,1799.5,1799.3,1.11148]
[1746453123146,1.11149,1799.3,1799.2,1.1115]
[1746453123446,3.39034749,1799.1,1799.0,10.32427]
[1746453124043,1.9479,1799.5,1799.2,1.11154]
[1746453124247,1.11154,1799.2,1799.1,1.11156]
[1746453124445,1.11151,1799.3,1799.2,1.11153]
[1746453124651,3.2078,1799.4,1799.0,5.9894]
[1746453124652,3.39034749,1799.1,1799.0,5.9894]
[1746453124852,3.39034749,1799.1,1799.0,7.10107]
[1746453125151,1.11152,1799.3,1799.2,1.11154]
[1746453125558,1.11156,1799.2,1799.1,1.11157]
[1746453125854,4.50195749,1799.1,1799.0,3.978]
[1746453126054,6.35015749,1799.1,1799.0,3.978]
[1746453126657,6.35015749,1799.1,1799.0,5.08967]
[1746453126948,6.35015749,1799.1,1799.0,3.978]
[1746453127357,6.35015749,1799.1,1799.0,5.08967]
[1746453127754,6.35015749,1799.1,1799.0,3.978]
[1746453129060,1.11192,1798.6,1798.5,53.07698]
[1746453129255,4.50226749,1798.6,1798.5,57.04898]
[1746453129449,4.50226749,1798.6,1798.5,51.965]
[1746453129654,4.50226749,1798.6,1798.5,55.937]
[1746453129857,6.17018749,1798.6,1798.1,3.04628]
[1746453130053,3.39034749,1798.2,1798.1,3.04632]
[1746453130259,4.50250749,1798.2,1798.1,3.972]
[1746453130459,6.50870749,1798.2,1798.1,3.972]
[1746453130656,7.31294749,1798.2,1798.0,3.972]
[1746453130956,5.39654749,1798.2,1798.1,1.11222]
[1746453131160,6.50870749,1798.2,1798.1,1.9274]
[1746453131558,6.50870749,1798.2,1798.1,3.03962]
[1746453131754,5.39654749,1798.2,1798.1,3.03962]
[1746453132549,3.39034749,1798.2,1798.1,3.03962]
[1746453132754,1.1121,1798.3,1798.1,1.9274]
[1746453132955,3.39034749,1798.3,1798.2,3.03956]
[1746453133151,3.11828,1798.4,1798.3,1.1121]
[1746453133351,3.39034749,1798.3,1797.9,5.98863]
[1746453133552,3.39034749,1798.3,1798.1,1.11221]
[1746453133553,2.95899,1798.2,1798.1,1.11221]
[1746453133752,1.8468,1798.2,1798.1,1.11221]
[1746453133955,3.13358,1798.4,1798.0,8.59699]
[1746453134264,1.11206,1798.4,1798.3,1.11205]
[1746453134462,1.11206,1798.4,1798.3,3.973]
[1746453134759,1.897,1798.5,1798.4,1.11204]
[1746453134963,1.8468,1798.6,1798.5,1.11198]
[1746453135162,3.2078,1798.7,1798.6,1.11192]
[1746453135464,4.31965,1798.7,1798.6,5.08492]
[1746453135964,1.11184,1798.8,1798.7,1.11185]
[1746453136166,3.39034749,1798.7,1798.6,5.08485]
[1746453136364,4.50219749,1798.7,1798.6,5.08485]
[1746453136565,1.11185,1798.8,1798.7,1.11184]
[1746453136766,4.50219749,1798.7,1798.6,5.08488]
[1746453136965,1.11192,1798.6,1798.5,1.11192]
[1746453137168,4.50232749,1798.5,1798.4,3.973]
[1746453137367,4.50232749,1798.5,1798.4,5.08504]
[1746453137562,6.41002749,1798.5,1798.4,3.973]
[1746453137763,8.07799749,1798.5,1798.1,3.2078]
[1746453137963,1.1121,1798.3,1798.2,3.973]
[1746453138160,4.50250749,1798.2,1798.1,3.2078]
[1746453138365,11.28634749,1798.2,1797.5,2.7815]
[1746453138565,3.39034749,1797.8,1797.5,2.7815]
[1746453138766,3.39034749,1797.8,1797.7,1.11247]
[1746453138967,4.50291749,1797.6,1797.4,3.973]
[1746453139169,3.39034749,1797.5,1797.4,6.97171]
[1746453139672,1.8775,1797.9,1797.8,1.11241]
[1746453140066,5.26784749,1797.9,1797.8,1.11241]
[1746453140269,3.11382,1798.0,1797.8,1.11241]
[1746453140270,2.0015,1798.0,1797.8,1.8697]
[1746453140569,2.98964,1798.3,1798.2,1.11216]
[1746453140772,8.38148749,1798.3,1798.2,1.11216]
[1746453141273,7.26934749,1798.3,1798.2,1.11216]
[1746453141466,2.0015,1798.3,1798.2,2.98186]
[1746453142566,6.50394749,1798.3,1798.2,2.98186]
[1746453142872,5.39184749,1798.3,1798.2,1.11216]
[1746453143171,1.9783,1798.5,1798.4,1.11204]
[1746453143473,1.8543,1798.7,1798.6,1.11192]
[1746453143674,5.24464749,1798.7,1798.6,1.11192]
[1746453143872,3.39034749,1798.7,1798.6,1.11192]
[1746453144175,5.1481,1799.1,1799.0,1.11167]
[1746453144371,5.1481,1799.1,1799.0,5.08567]
[1746453144575,1.8543,1799.1,1799.0,5.08567]
[1746453144775,1.11148,1799.3,1799.1,1.11156]
[1746453145079,3.39034749,1799.2,1799.1,2.97356]
[1746453145269,1.11161,1799.1,1799.0,3.974]
[1746453145469,6.38555749,1799.1,1799.0,3.974]
[1746453145977,6.38555749,1799.1,1799.0,5.08567]
[1746453146270,4.0005,1799.4,1799.3,1.11148]
[1746453146474,1.1112,1799.8,1799.4,2.77856]
[1746453146671,5.27394749,1799.7,1799.5,1.9034]
[1746453146868,4.31895,1799.9,1799.6,3.974]
[1746453147073,3.39034749,1799.8,1799.7,3.01464]
[1746453147267,1.11111,1799.9,1799.7,1.9034]
[1746453147468,1.11117,1799.8,1799.7,1.9034]
[1746453147676,1.11124,1799.7,1799.6,3.974]
[1746453147863,5.27394749,1799.7,1799.6,5.0853]
[1746453148065,5.27394749,1799.7,1799.6,3.974]
[1746453148269,9.59298749,1799.7,1799.6,3.974]
[1746453150585,8.48174749,1799.7,1799.6,3.974]
[1746453150775,1.11122,1799.8,1799.6,5.08526]
[1746453151074,3.2078,1799.9,1799.6,3.974]
[1746453151075,4.50158749,1799.7,1799.6,3.974]
[1746453151977,3.39034749,1799.7,1799.6,5.0853]
[1746453152168,5.1959,1799.9,1799.6,3.974]
[1746453152375,3.39034749,1799.8,1799.7,3.05328]
[1746453152575,4.50151749,1799.8,1799.7,1.9421]
[1746453152771,6.39111749,1799.8,1799.7,1.9421]
[1746453152967,6.39116749,1799.8,1799.6,5.0853]
[1746453153167,3.39034749,1799.7,1799.6,7.0274]
[1746453153580,3.00082,1799.8,1799.6,7.0274]
[1746453153778,3.00082,1799.8,1799.7,1.9421]
[1746453153975,6.39116749,1799.8,1799.7,1.9421]
[1746453154178,1.11124,1799.7,1799.6,3.974]
[1746453154376,1.11124,1799.7,1799.4,3.2078]
[1746453154377,1.11136,1799.5,1799.4,3.2078]
[1746453154574,4.50170749,1799.5,1799.4,7.1748]
[1746453154781,3.39034749,1799.5,1799.4,8.28622]
[1746453154982,6.49190749,1799.5,1799.4,7.1748]
[1746453155483,3.39034749,1799.5,1799.4,9.1715]
[1746453155782,1.9902,1799.7,1799.6,1.1113]
[1746453155980,6.59814749,1799.9,1799.7,1.11122]
[1746453156176,7.70925749,1799.9,1799.8,1.9967]
[1746453156370,4.50158749,1799.7,1799.6,3.967]
[1746453156977,3.39034749,1799.7,1799.4,3.2078]
[1746453157181,4.50170749,1799.5,1799.4,7.1748]
[1746453157971,6.37070749,1799.5,1799.4,7.1748]
[1746453158475,6.37070749,1799.5,1799.4,3.967]
[1746453158682,2.77891,1799.2,1798.5,5.98773]
[1746453158885,1.11173,1798.9,1798.8,3.07319]
[1746453159176,4.50213749,1798.8,1798.7,3.967]
[1746453159584,4.50213749,1798.8,1798.7,5.07885]
[1746453159777,6.37113749,1798.8,1798.7,7.04025]
[1746453160085,1.11179,1798.8,1798.7,7.04022]
[1746453161081,1.11176,1798.9,1798.8,1.11176]
[1746453161284,2.0211,1799.3,1798.7,9.1362]
[1746453161581,1.11167,1799.0,1798.9,4.3195]
[1746453161779,1.11166,1799.1,1799.0,1.11166]
[1746453161984,1.11166,1799.1,1799.0,3.01286]
[1746453162287,1.11166,1799.1,1799.0,1.9012]
[1746453162483,1.11166,1799.1,1799.0,3.01287]
[1746453162787,1.11166,1799.1,1799.0,1.9012]
[1746453163081,1.11166,1799.1,1799.0,3.01287]
[1746453163782,1.11166,1799.1,1799.0,1.9012]
[1746453163984,1.11166,1799.1,1799.0,3.01287]
[1746453165083,2.95839,1799.2,1799.1,1.11161]
[1746453165383,1.11161,1799.1,1799.0,3.01282]
[1746453165578,5.23714749,1799.2,1799.1,1.11161]
[1746453165777,3.39034749,1799.2,1799.1,1.11161]
[1746453165982,3.01725,1799.6,1799.5,1.11136]
[1746453166185,1.11128,1799.7,1799.6,1.1113]
[1746453166484,1.11128,1799.7,1799.6,3.1247]
[1746453166681,4.50162749,1799.7,1799.6,3.1247]
[1746453167078,3.39034749,1799.7,1799.6,3.1247]
[1746453167282,8.45502196,1799.8,1799.7,1.11124]
[1746453167481,8.45502196,1799.8,1799.7,3.07884]
[1746453167682,11.84536945,1799.8,1799.7,3.07884]
[1746453167885,8.83638945,1799.8,1799.7,3.07884]
[1746453168075,9.94755945,1799.8,1799.7,1.9676]
[1746453168487,1.11124,1799.7,1799.6,1.11124]
[1746453168693,6.48548749,1799.7,1799.6,1.11124]
[1746453168984,3.09514,1799.7,1799.6,1.11124]
[1746453169385,1.1113,1799.6,1799.5,5.9346]
[1746453169584,6.48554749,1799.6,1799.5,7.04596]
[1746453169786,3.0952,1799.6,1799.5,7.04596]
[1746453170390,1.9839,1799.6,1799.5,7.04596]
[1746453170686,1.11121,1799.8,1799.7,1.11117]
[1746453170886,3.02131,1799.8,1799.7,1.11117]
[1746453171087,1.11127,1799.7,1799.6,1.11124]
[1746453171289,4.50161749,1799.7,1799.6,1.11124]
[1746453171495,1.1113,1799.6,1799.5,7.04591]
[1746453171683,1.1113,1799.6,1799.5,5.07831]
[1746453171684,6.41174749,1799.6,1799.5,5.07831]
[1746453171990,5.30044749,1799.6,1799.5,5.07831]
[1746453172492,6.41174749,1799.6,1799.5,5.07831]
[1746453172686,5.30044749,1799.6,1799.2,1.8931]
[1746453172892,1.11141,1799.5,1799.4,1.11137]
[1746453173192,2.97861,1799.5,1799.4,1.11137]
[1746453173385,6.36895749,1799.5,1799.4,1.11137]
[1746453174200,2.97856,1799.5,1799.4,2.99117]
[1746453174693,1.8672,1799.5,1799.4,2.99117]
[1746453174895,2.97856,1799.5,1799.4,2.99117]
[1746453175494,1.8672,1799.5,1799.4,2.99117]
[1746453175687,1.11126,1799.7,1799.4,1.8798]
[1746453175888,4.50160749,1799.7,1799.6,1.1113]
[1746453176185,4.50160749,1799.7,1799.6,5.0783]
[1746453176387,2.0529,1799.8,1799.6,3.967]
[1746453176585,6.55441749,1799.8,1799.7,3.09014]
[1746453177394,5.44324749,1799.8,1799.7,3.09014]
[1746453177796,4.50151749,1799.8,1799.7,3.09014]
[1746453178000,3.39034749,1799.8,1799.7,6.29794]
[1746453178190,3.16401,1799.9,1799.8,1.11117]
[1746453178689,6.55435749,1799.9,1799.8,1.11117]
[1746453179102,6.55439749,1799.9,1799.8,1.11117]
[1746453179403,5.44324749,1799.9,1799.8,1.11117]
[1746453179601,7.97486551,1800.2,1800.1,1.11099]
[1746453179897,7.97486551,1800.2,1800.1,5.07699]
[1746453179898,6.59814749,1800.2,1800.1,5.07699]
[1746453180195,7.70907749,1800.2,1800.1,5.07699]
[1746453180405,7.70907749,1800.2,1800.1,3.966]
[1746453180801,4.50127749,1800.2,1800.1,5.07699]
[1746453181100,4.50127749,1800.2,1800.1,3.966]
[1746453181608,7.70907749,1800.2,1800.1,3.966]
[1746453182102,2.77751,1800.1,1799.7,4.31901]
[1746453182297,1.11111,1799.9,1799.8,3.966]
[1746453182702,6.46355749,1799.9,1799.8,3.966]
[1746453183201,1.1113,1799.6,1799.5,51.967]
[1746453183404,4.50164749,1799.6,1799.5,55.933]
[1746453183896,1.9621,1799.7,1799.6,1.1113]
[1746453184102,3.9747,1800.0,1799.9,1.11111]
[1746453184296,3.9747,1800.0,1799.9,5.07311]
[1746453184502,8.47614749,1800.0,1799.9,5.07311]
[1746453184997,6.47654749,1800.0,1799.9,3.962]
[1746453185197,6.47654749,1800.0,1799.9,5.07311]
[1746453185399,6.47654749,1800.0,1799.9,6.97021]
[1746453185704,6.47654749,1800.0,1799.9,3.962]
[1746453185904,9.68434749,1800.0,1799.9,3.962]
[1746453186802,1.1113,1799.6,1799.5,51.967]
[1746453187004,4.50164749,1799.6,1799.5,57.04036]
[1746453187203,1.1113,1799.6,1799.5,58.93746]
[1746453187398,1.8853,1799.7,1799.5,57.8261]
[1746453187701,6.38691749,1799.7,1799.6,1.1113]
[1746453187902,2.99657,1799.7,1799.6,1.1113]
[1746453188205,5.1829,1800.0,1799.8,1.11112]
[1746453188409,1.11113,1799.9,1799.8,1.11112]
[1746453188599,1.11113,1799.9,1799.8,5.07312]
[1746453188802,1.11113,1799.9,1799.8,3.962]
[1746453189001,1.11113,1799.9,1799.8,5.07317]
[1746453189002,3.01883,1799.9,1799.8,5.07317]
[1746453189304,3.01883,1799.9,1799.8,3.962]
[1746453189506,6.40917749,1799.9,1799.8,3.962]
[1746453190607,1.1113,1799.6,1799.5,51.967]
[1746453190909,7.70944749,1799.6,1799.5,55.929]
[1746453191100,2.77856,1799.4,1799.2,3.962]
[1746453191405,6.46562749,1799.3,1799.2,3.962]
[1746453191709,8.33642749,1799.3,1799.2,3.962]
[1746453192108,11.54422749,1799.3,1799.2,3.962]
[1746453193305,2.77913,1799.1,1798.8,7.32604138]
[1746453193506,4.50207749,1798.9,1798.8,0.25018138]
[1746453193706,9.50207749,1798.9,1798.8,0.25018138]
[1746453194008,4.50213749,1798.8,1798.7,9.57496345]
[1746453194210,9.59163749,1798.8,1798.7,9.57496345]
[1746453194408,14.59163749,1798.8,1798.7,9.57496345]
[1746453194609,9.59163749,1798.8,1798.7,9.57496345]
[1746453196517,9.59163749,1798.8,1798.7,1.11185]
[1746453196518,8.47984749,1798.8,1798.7,1.11185]
[1746453196710,9.59167749,1798.8,1798.7,1.9512]
[1746453196909,1.11179,1798.8,1798.7,1.9512]
[1746453197313,1.11192,1798.6,1798.5,7.1708]
[1746453197611,1.11192,1798.6,1798.5,3.963]
[1746453197612,4.50226749,1798.6,1798.5,3.963]
[1746453198012,6.43066749,1798.6,1798.5,3.963]
[1746453198513,1.1121,1798.3,1798.2,7.07736]
[1746453198713,4.50244749,1798.3,1798.2,7.07736]
[1746453198912,3.39034749,1798.3,1798.2,7.07736]
[1746453199107,4.50244749,1798.3,1798.2,7.07736]
[1746453199306,1.1121,1798.3,1798.2,7.07736]
[1746453200117,4.50244749,1798.3,1798.2,5.9652]
[1746453200319,4.50244749,1798.3,1798.2,7.07736]
[1746453200620,4.50244749,1798.3,1798.2,5.9652]
[1746453200816,4.50244749,1798.3,1798.2,7.07736]
[1746453201222,3.04047,1798.4,1798.3,1.1121]
[1746453201426,1.8913,1798.5,1798.4,1.11204]
[1746453201615,1.11205,1798.4,1798.3,1.11206]
[1746453202023,6.39367749,1798.5,1798.4,1.11204]
[1746453202227,3.39034749,1798.5,1798.4,1.11204]
[1746453202420,1.11198,1798.5,1798.4,1.11199]
[1746453202614,3.39034749,1798.5,1798.2,9.173]
[1746453202815,1.1121,1798.3,1798.2,10.28512]
[1746453203128,4.50244749,1798.3,1798.2,10.28512]
[1746453203317,2.9713,1798.3,1798.2,9.173]
[1746453203518,2.9713,1798.3,1798.2,5.9652]
[1746453203519,6.36164749,1798.3,1798.2,5.9652]
[1746453203720,6.36164749,1798.3,1798.2,7.07736]
[1746453204217,5.98764,1798.6,1798.2,5.9652]
[1746453204413,1.1121,1798.3,1798.2,5.9652]
[1746453204619,4.50244749,1798.3,1798.2,7.07736]
[1746453205221,4.50244749,1798.3,1798.2,5.9652]
[1746453205523,4.50244749,1798.3,1798.2,3.963]
[1746453205713,6.36164749,1798.3,1798.2,3.963]
[1746453206624,6.36164749,1798.3,1798.2,5.07516]
[1746453206827,6.36164749,1798.3,1798.2,3.963]
[1746453207425,6.36164749,1798.3,1798.2,5.07516]
[1746453208324,1.1121,1798.3,1798.2,5.07516]
[1746453208517,5.83,1798.4,1798.2,3.963]
[1746453208723,4.50242749,1798.4,1798.3,2.9885]
[1746453209323,1.9419,1798.5,1798.4,1.11204]
[1746453209531,3.05388,1798.5,1798.4,1.9052]
[1746453209729,6.44422749,1798.5,1798.4,1.9052]
[1746453209927,1.1121,1798.3,1798.2,3.963]
[1746453210230,1.9879,1798.4,1798.2,3.963]
[1746453210531,3.66525115,1798.6,1798.5,1.11198]
[1746453210733,3.66525115,1798.6,1798.5,5.07698]
[1746453211319,3.66525115,1798.6,1798.5,13.28478]
[1746453212429,3.66525115,1798.6,1798.5,8.28478]
[1746453212930,3.66525115,1798.6,1798.5,13.28478]
[1746453214233,5.9288,1799.1,1799.0,1.11167]
[1746453214234,1.11165,1799.1,1799.0,1.11167]
[1746453214433,3.11515,1799.1,1799.0,5.07367]
[1746453214733,4.50199749,1799.1,1799.0,5.07367]
[1746453215330,3.39034749,1799.1,1799.0,5.07367]
[1746453215534,1.11157,1799.2,1799.1,1.11161]
[1746453215729,1.11161,1799.1,1799.0,5.9606]
[1746453215934,7.70975749,1799.1,1799.0,3.962]
[1746453216532,1.11179,1798.8,1798.7,5.9596]
[1746453216730,3.39034749,1798.8,1798.7,7.07145]
[1746453217924,4.50213749,1798.8,1798.7,7.07145]
[1746453218135,3.39034749,1798.8,1798.7,7.07145]
[1746453218435,4.50213749,1798.8,1798.7,7.07145]
[1746453220234,3.39034749,1798.8,1798.7,7.07145]
[1746453220535,3.9612,1799.0,1798.9,1.11173]
[1746453220736,8.46321749,1799.0,1798.9,1.11173]
[1746453221139,1.11178,1798.9,1798.8,1.11175]
[1746453221438,4.50213749,1798.8,1798.7,7.07145]
[1746453221639,6.42643749,1798.8,1798.7,5.9596]
[1746453221840,6.42643749,1798.8,1798.7,3.961]
[1746453222046,6.42643749,1798.8,1798.7,5.07285]
[1746453222233,6.42643749,1798.8,1798.7,3.961]
[1746453222543,1.11202,1798.5,1798.4,3.961]
[1746453222726,3.39034749,1798.5,1798.4,5.07299]
[1746453223040,1.11185,1798.8,1798.7,1.11182]
[1746453223232,4.98018,1798.9,1798.8,1.11179]
[1746453223537,6.25581,1799.0,1798.9,1.11173]
[1746453223733,4.31947,1799.0,1798.9,1.11173]
[1746453224337,7.70981749,1799.0,1798.9,1.11173]
[1746453224537,1.11173,1798.9,1798.8,3.11095]
[1746453224842,6.53497749,1798.9,1798.8,3.11095]
[1746453225043,6.53497749,1798.9,1798.8,1.9992]
[1746453225341,5.42324749,1798.9,1798.8,1.11179]
[1746453225543,5.42324749,1798.9,1798.8,2.98389]
[1746453226044,5.42324749,1798.9,1798.7,3.961]
[1746453226244,6.50273749,1798.8,1798.7,3.961]
[1746453226543,5.55929,1798.7,1798.2,3.2078]
[1746453226734,1.11223,1798.2,1798.1,3.961]
[1746453227046,1.11222,1798.1,1798.0,1.11226]
[1746453227343,3.14512,1798.1,1798.0,5.07326]
[1746453228047,2.0329,1798.1,1798.0,5.07326]
[1746453228340,1.1122,1798.2,1798.0,3.961]
[1746453228539,1.1122,1798.2,1798.1,1.9392]
[1746453228540,4.50254749,1798.2,1798.1,1.9392]
[1746453228733,1.11222,1798.1,1798.0,5.07329]
[1746453228932,1.9946,1798.1,1798.0,5.07329]
[1746453229145,1.11221,1798.2,1798.1,1.11222]
[1746453229347,4.50255749,1798.2,1798.1,3.05142]
[1746453229544,6.49715749,1798.2,1798.1,3.05142]
[1746453229740,6.49715749,1798.2,1798.1,1.9392]
[1746453230746,6.49715749,1798.2,1798.1,3.05142]
[1746453231546,3.10681,1798.2,1798.1,3.05142]
[1746453232439,1.11222,1798.1,1798.0,3.961]
[1746453232643,6.55576749,1798.1,1798.0,3.961]
[1746453233041,6.55576749,1798.1,1798.0,5.07329]
[1746453233248,6.55576749,1798.1,1798.0,3.961]
[1746453234350,6.55576749,1798.1,1798.0,5.07329]
[1746453234745,2.0532,1798.1,1798.0,5.07329]
[1746453235050,1.11219,1798.2,1798.1,1.11222]
[1746453235249,3.13349,1798.2,1798.1,1.11222]
[1746453235549,3.13349,1798.2,1798.1,3.08692]
[1746453235848,6.52383749,1798.2,1798.1,3.08692]
[1746453236048,5.41164749,1798.2,1798.1,3.08692]
[1746453236239,3.8604,1798.3,1798.2,1.11216]
[1746453236438,4.9725,1798.3,1798.2,3.08686]
[1746453236849,7.0253,1798.3,1798.2,3.08686]
[1746453237049,1.11222,1798.2,1798.1,1.1122]
[1746453237252,6.55536749,1798.2,1798.1,1.1122]
[1746453237848,6.55536749,1798.2,1798.1,3.102]
[1746453238448,3.16502,1798.2,1798.1,3.102]
[1746453239051,2.0528,1798.2,1798.1,3.102]
[1746453239254,3.16496,1798.2,1798.1,3.102]
[1746453239648,6.87305115,1798.4,1798.1,4.77033]
[1746453239952,5.52555115,1798.4,1798.3,1.1121]
[1746453240154,6.63759115,1798.4,1798.3,5.0741]
[1746453240449,10.02793864,1798.4,1798.3,3.962]
[1746453240655,10.02793864,1798.4,1798.3,5.0741]
[1746453241152,10.02793864,1798.4,1798.3,3.962]
[1746453241345,10.02793864,1798.4,1798.3,5.0741]
[1746453242450,10.02793864,1798.4,1798.3,3.962]
[1746453242948,10.02793864,1798.4,1798.3,5.0741]
[1746453243151,10.02793864,1798.4,1798.3,3.962]
[1746453243957,1.11225,1798.1,1798.0,3.962]
[1746453244151,1.11235,1797.9,1797.8,1.11236]
[1746453244343,1.11235,1797.9,1797.7,5.9065]
[1746453244344,1.11241,1797.8,1797.7,3.962]
[1746453244546,6.52805749,1797.8,1797.7,3.962]
[1746453245357,2.0253,1797.8,1797.7,5.07447]
[1746453245660,1.11239,1797.9,1797.8,1.11241]
[1746453245850,3.09359,1797.9,1797.8,1.11241]
[1746453246051,6.48393749,1797.9,1797.8,2.99661]
[1746453247353,12.70204979,1797.9,1797.8,2.99661]
[1746453247549,13.81439979,1797.9,1797.8,2.99661]
[1746453248055,12.70204979,1797.9,1797.8,2.99661]
[1746453248356,1.1126,1797.5,1797.4,3.959]
[1746453248557,4.50291749,1797.6,1797.5,1.1126]
[1746453248948,2.0491,1797.6,1797.4,3.959]
[1746453249253,4.50294749,1797.5,1797.4,3.959]
[1746453249456,8.26674749,1797.5,1797.4,3.959]
[1746453250053,11.47454749,1797.5,1797.4,3.959]
[1746453250751,11.47454749,1797.5,1797.1,3.959]
[1746453250752,1.11278,1797.2,1797.1,3.959]
[1746453250951,4.50312749,1797.2,1797.1,3.959]
[1746453252153,1.11284,1797.1,1796.7,3.959]
[1746453252455,3.39034749,1796.9,1796.8,1.11303]
[1746453252659,4.50337749,1796.8,1796.7,5.9889]
[1746453252852,6.54127749,1796.8,1796.7,5.9889]
[1746453253257,6.54127749,1796.8,1796.7,3.959]
[1746453253658,5.42824749,1796.8,1796.7,5.07209]
[1746453253857,6.54127749,1796.8,1796.7,5.07209]
[1746453254250,6.54127749,1796.8,1796.7,3.959]
[1746453254651,9.74907749,1796.8,1796.7,3.959]
[1746453255051,9.74907749,1796.8,1796.4,8.77309]
[1746453255252,5.42824749,1796.8,1796.5,2.783]
[1746453255457,2.0379,1796.8,1796.7,1.11309]
[1746453255761,2.0379,1796.8,1796.7,5.07309]
[1746453256459,6.19354,1797.0,1796.9,1.11297]
[1746453256753,10.33594749,1797.0,1796.9,1.11297]
[1746453256956,1.865,1797.0,1796.9,1.11297]
[1746453258052,1.865,1797.0,1796.9,3.02427]
[1746453258258,3.05144,1797.1,1797.0,1.11291]
[1746453258457,5.32894749,1797.1,1797.0,3.02421]
[1746453258653,6.44178749,1797.1,1797.0,6.98421]
[1746453258853,6.44178749,1797.1,1797.0,3.96]
[1746453259655,5.32894749,1797.1,1797.0,5.07291]
[1746453260056,5.1146,1797.3,1797.2,1.11278]
[1746453260255,8.64254749,1797.3,1797.2,1.11278]
[1746453260460,1.9011,1797.5,1797.4,1.11266]
[1746453260661,5.29144749,1797.5,1797.4,1.11266]
[1746453260860,7.33584749,1797.5,1797.4,1.11266]
[1746453261160,7.33584749,1797.5,1797.4,3.14406]
[1746453261359,8.44844749,1797.5,1797.4,1.11266]
[1746453261552,1.11266,1797.4,1797.3,5.07268]
[1746453261754,5.28064749,1797.4,1797.3,5.07268]
[1746453261953,1.9011,1797.5,1797.4,1.11266]
[1746453262262,6.40404749,1797.5,1797.4,3.14406]
[1746453262463,7.18174749,1797.5,1797.4,3.14406]
[1746453262661,1.983,1797.6,1797.5,1.1126]
[1746453262862,1.8903,1797.7,1797.6,1.11253]
[1746453263157,4.0134,1797.9,1797.8,1.11241]